fUSD/lending_fUSD_20251215
["ID","MTS","AMOUNT","RATE_DAILY","PERIOD"]
[398523267,1765785055409,-151.0,0.00016438,2]
[398523268,1765785055418,-658.528015,0.00016438,2]
[398523269,1765785055427,-151.0,0.00016438,2]
[398523270,1765785055436,-658.528015,0.00016438,2]
[398523271,1765785055445,-151.0,0.00016438,2]
[398523272,1765785055454,-658.528015,0.00016438,2]
[398523273,1765785055463,-156.024994,0.00016438,2]
[398523274,1765785055472,-658.528015,0.00016438,2]
[398523275,1765785055481,-658.528015,0.00016438,2]
[398523276,1765785055490,-658.528015,0.00016438,2]
[398523277,1765785055499,-658.528015,0.00016438,2]
[398523278,1765785055509,-151.0,0.00016438,2]
[398523279,1765785055518,-658.528015,0.00016438,2]
[398523280,1765785055527,-151.0,0.00016438,2]
[398523281,1765785055536,-658.528015,0.00016438,2]
[398523282,1765785055545,-151.0,0.00016438,2]
[398523283,1765785055554,-333.72973,0.00016438,2]
[398523284,1765785055564,-658.528015,0.00016438,2]
[398523285,1765785055573,-164.399535,0.00016438,2]
[398523286,1765785055583,-333.72973,0.00016438,2]
[398523287,1765785055593,-658.52801,0.00016438,2]
[398523288,1765785055602,-333.72973,0.00016438,2]
[398523289,1765785055613,-1007.739494,0.00016438,2]
[398523290,1765785055622,-333.72973,0.00016438,2]
[398523291,1765785055633,-1007.739494,0.00016438,2]
[398523292,1765785055643,-333.72973,0.00016438,2]
[398523293,1765785055653,-1007.739494,0.00016438,2]
[398523294,1765785055662,-333.72973,0.00016438,2]
[398523295,1765785055672,-1007.739494,0.00016438,2]
[398523296,1765785055681,-333.72973,0.00016438,2]
[398523297,1765785055690,-151.0,0.00016438,2]
[398523298,1765785055699,-1007.739494,0.00016438,2]
[398523299,1765785055709,-333.72973,0.00016438,2]
[398523300,1765785055719,-1007.739494,0.00016438,2]
[398523301,1765785055728,-151.0,0.00016438,2]
[398523302,1765785055737,-333.72973,0.00016438,2]
[398523303,1765785055746,-1007.739494,0.00016438,2]
[398523304,1765785055755,-151.0,0.00016438,2]
[398523305,1765785055764,-151.0,0.00016438,2]
[398523306,1765785055773,-333.72973,0.00016438,2]
[398523307,1765785055783,-1007.739494,0.00016438,2]
[398523308,1765785055792,-151.0,0.00016438,2]
[398523309,1765785055801,-151.0,0.00016438,2]
[398523310,1765785055810,-1007.739494,0.00016438,2]
[398523311,1765785055819,-151.0,0.00016438,2]
[398523312,1765785055828,-151.0,0.00016438,2]
[398523313,1765785055838,-333.72973,0.00016438,2]
[398523314,1765785055847,-1007.739494,0.00016438,2]
[398523315,1765785055856,-151.0,0.00016438,2]
[398523316,1765785055865,-151.0,0.00016438,2]
[398523317,1765785055875,-333.72973,0.00016438,2]
[398523318,1765785055884,-151.0,0.00016438,2]
[398523319,1765785055893,-151.0,0.00016438,2]
[398523320,1765785055903,-156.8913,0.00016438,2]
[398523321,1765785055912,-151.0,0.00016438,2]
[398523322,1765785055921,-333.72973,0.00016438,2]
[398523323,1765785055935,-151.0,0.00016438,2]
[398523324,1765785055946,-333.72973,0.00016438,2]
[398523325,1765785055958,-151.0,0.00016438,2]
[398523326,1765785055967,-333.72973,0.00016438,2]
[398523327,1765785055977,-221.579601,0.00016438,2]
[398523328,1765785055987,-333.72973,0.00016438,2]
[398523329,1765785055997,-333.72973,0.00016438,2]
[398523330,1765785056006,-333.72973,0.00016438,2]
[398523331,1765785056015,-333.72973,0.00016438,2]
[398523332,1765785056025,-333.729739,0.00016438,2]
[398523333,1765785056034,-197.815856,0.00016438,2]
[398523334,1765785056044,-197.815856,0.00016438,2]
[398523335,1765785056053,-197.815856,0.00016438,2]
[398523336,1765785056062,-197.815856,0.00016438,2]
[398523337,1765785056073,-197.815856,0.00016438,2]
[398523338,1765785056082,-197.815856,0.00016438,2]
[398523339,1765785056092,-197.815856,0.00016438,2]
[398523340,1765785056102,-197.815856,0.00016438,2]
[398523341,1765785056112,-197.815856,0.00016438,2]
[398523342,1765785056122,-408.14372,0.00016438,2]
[398523343,1765785056132,-197.815856,0.00016438,2]
[398523344,1765785056141,-408.14372,0.00016438,2]
[398523345,1765785056151,-197.815856,0.00016438,2]
[398523346,1765785056161,-197.815856,0.00016438,2]
[398523347,1765785056170,-197.815856,0.00016438,2]
[398523348,1765785056179,-243.968931,0.00016438,2]
[398523349,1765785056189,-197.815856,0.00016438,2]
[398523350,1765785056198,-243.968931,0.00016438,2]
[398523351,1765785056209,-197.815856,0.00016438,2]
[398523352,1765785056218,-464.12,0.00016438,2]
[398523353,1765785056229,-464.12,0.00016438,2]
[398523354,1765785056239,-464.12,0.00016438,2]
[398523355,1765785056249,-170.41,0.00016438,2]
[398523356,1765785056259,-464.12,0.00016438,2]
[398523357,1765785056268,-925.28,0.00016438,2]
[398523358,1765785056278,-150.0,0.00016438,2]
[398523359,1765785056288,-170.44,0.00016438,2]
[398523360,1765785056298,-172.79,0.00016438,2]
[398523361,1765785056308,-150.67,0.00016438,2]
[398523362,1765785056317,-170.46,0.00016438,2]
[398523363,1765785056327,-150.0,0.00016438,2]
[398523364,1765785056339,-1217.27,0.00016438,2]
[398523365,1765785056348,-1217.27,0.00016438,2]
[398523366,1765785056357,-1233.36,0.00016438,2]
[398523367,1765785056366,-150.0,0.00016438,2]
[398523368,1765785056376,-1217.27,0.00016438,2]
[398523369,1765785056387,-300.0,0.00016438,2]
[398523370,1765785056400,-988.0,0.0001645,2]
[398523371,1765785056412,-1622.02238756,0.00016463,2]
[398523372,1765785056422,-8721.88160797,0.00016499,2]
[398523373,1765785056431,-500.0,0.00016499,2]
[398523374,1765785056440,-129659.0143858,0.000165,2]
[398523375,1765785056450,-154.642951,0.000165,2]
[398523376,1765785056460,-151.0,0.000165,2]
[398523377,1765785056469,-151.0,0.000165,2]
[398523378,1765785056478,-151.0,0.000165,2]
[398523379,1765785056487,-151.0,0.000165,2]
[398523380,1765785056496,-151.0,0.000165,2]
[398523381,1765785056505,-151.0,0.000165,2]
[398523382,1765785056514,-151.0,0.000165,2]
[398523383,1765785056523,-151.0,0.000165,2]
[398523384,1765785056532,-151.0,0.000165,2]
[398523385,1765785056541,-151.0,0.000165,2]
[398523386,1765785056550,-469.3,0.000165,2]
[398523387,1765785056559,-200.0,0.00016526,2]
[398523388,1765785056568,-500.0,0.00016548,2]
[398523389,1765785056576,-1502.0,0.00016555,2]
[398523390,1765785056586,-595.37131296,0.00016555,2]
[398523391,1765785056597,-1285.63,0.00016563,2]
[398523392,1765785056607,-1622.02238756,0.00016572,2]
[398523393,1765785056615,-166.66,0.00016612,2]
[398523394,1765785056626,-1996.0,0.00016628,2]
[398523395,1765785056635,-151.0,0.0001666,2]
[398523396,1765785056645,-369.44579264,0.0001666,2]
[398523397,1765785056654,-168.0,0.00016677,2]
[398523398,1765785056663,-1622.02238756,0.00016682,2]
[398523399,1765785056673,-168.0,0.00016682,2]
[398523400,1765785056682,-500.0,0.00016685,2]
[398523401,1765785056691,-166.67,0.00016689,2]
[398523402,1765785056700,-168.0,0.0001669,2]
[398523403,1765785056709,-200.0,0.00016691,2]
[398523404,1765785056718,-789.0,0.00016724,2]
[398523405,1765785056727,-150.0,0.00016724,2]
[398523406,1765785056737,-425.0,0.00016724,2]
[398523407,1765785056747,-150.0,0.00016724,2]
[398523408,1765785056756,-150.0,0.00016724,2]
[398523409,1765785056765,-150.0,0.00016724,2]
[398523410,1765785056774,-242.85,0.00016769,2]
[398523411,1765785056785,-1007.0,0.00016778,2]
[398523412,1765785056795,-1622.02238756,0.00016791,2]
[398523413,1765785056805,-500.0,0.00016822,2]
[398523414,1765785056814,-2753.97523,0.0001683,2]
[398523415,1765785056824,-168.0,0.00016831,2]
[398523416,1765785056839,-1285.63,0.00016837,2]
[398523417,1765785056848,-200.0,0.00016858,2]
[398523418,1765785056858,-789.0,0.00016861,2]
[398523419,1765785056867,-150.0,0.00016861,2]
[398523420,1765785056876,-425.0,0.00016861,2]
[398523421,1765785056886,-150.0,0.00016861,2]
[398523422,1765785056895,-150.0,0.00016861,2]
[398523423,1765785056905,-963.113,0.00016878,2]
[398523424,1765785056914,-178.50581784,0.00016878,2]
[398523425,1765785056923,-500.0,0.00016884,2]
[398523426,1765785056932,-500.0,0.00016884,2]
[398523427,1765785056942,-500.0,0.00016884,2]
[398523428,1765785056953,-500.0,0.00016899,2]
[398523429,1765785056963,-107718.59374758,0.000169,2]
[398523430,1765785056973,-1622.02238756,0.000169,2]
[398523431,1765785056982,-5298.0,0.000169,5]
[398523432,1765785056991,-500.0,0.00016909,2]
[398523433,1765785057000,-500.0,0.00016909,2]
[398523434,1765785057010,-1607.0,0.00016917,2]
[398523435,1765785057019,-611.0,0.00016917,2]
[398523436,1765785057029,-3451.0,0.00016917,2]
[398523437,1765785057038,-1324.0,0.00016917,2]
[398523438,1765785057046,-1261.0,0.00016917,2]
[398523439,1765785057056,-589.0,0.00016917,2]
[398523440,1765785057066,-911.0,0.00016917,2]
[398523441,1765785057076,-150.0,0.00016917,2]
[398523442,1765785057086,-2426.0,0.00016917,2]
[398523443,1765785057095,-563.0,0.00016917,2]
[398523444,1765785057104,-500.0,0.00016959,2]
[398523445,1765785057113,-500.0,0.00016973,2]
[398523446,1765785057122,-379.34447673,0.00016973,2]
[398523447,1765785057131,-500.0,0.00016973,2]
[398523448,1765785057140,-500.0,0.00016973,2]
[398523449,1765785057149,-500.0,0.00016973,2]
[398523450,1765785057158,-500.0,0.00016973,2]
[398523451,1765785057167,-500.0,0.00016973,2]
[398523452,1765785057175,-500.0,0.00016984,2]
[398523453,1765785057184,-151.0,0.00016985,2]
[398523454,1765785057194,-355.25779954,0.00016985,2]
[398523455,1765785057202,-508.5401249,0.00016986,2]
[398523456,1765785057211,-53360.95,0.00016986,2]
[398523457,1765785057220,-150.0,0.00016986,2]
[398523458,1765785057229,-150.0,0.00016986,2]
[398523459,1765785057237,-600.0,0.00016986,2]
[398523460,1765785057246,-164.0,0.0001699,2]
[398523461,1765785057255,-276.64569051,0.0001699,2]
[398523462,1765785057263,-276.64569051,0.0001699,2]
[398523463,1765785057273,-789.0,0.00016998,2]
[398523464,1765785057283,-425.0,0.00016998,2]
[398523465,1765785057292,-200.0,0.00016998,2]
[398523466,1765785057300,-200.0,0.00016998,2]
[398523467,1765785057309,-150.0,0.00016999,2]
[398523468,1765785057320,-150.0,0.00016999,2]
[398523469,1765785057329,-150.0,0.00016999,2]
[398523470,1765785057338,-150.0,0.00016999,2]
[398523471,1765785057348,-150.0,0.00016999,2]
[398523472,1765785057360,-150.0,0.00016999,2]
[398523473,1765785057381,-150.0,0.00016999,2]
[398523474,1765785057398,-150.0,0.00016999,2]
[398523475,1765785057420,-150.0,0.00016999,2]
[398523476,1765785057435,-2000.0,0.00016999,2]
[398523477,1765785057454,-2000.0,0.00016999,2]
[398523478,1765785057473,-300.0,0.00016999,2]
[398523479,1765785057490,-200.77285261,0.00016999,2]
[398523480,1765785057508,-272.84521117,0.00016999,2]
[398523481,1765785057525,-500.0,0.00016999,2]
[398523482,1765785057543,-500.0,0.00016999,2]
[398523483,1765785057559,-500.0,0.00016999,2]
[398523484,1765785057573,-500.0,0.00016999,2]
[398523485,1765785057593,-500.0,0.00016999,2]
[398523486,1765785057607,-500.0,0.00016999,2]
[398523487,1765785057624,-500.0,0.00016999,2]
[398523488,1765785057637,-500.0,0.00016999,2]
[398523489,1765785057652,-3355216.48146269,0.00017,2]
[398523490,1765785061636,-2343.45596777,0.00017,2]
[398523491,1765785061824,-197.815856,0.00016438,2]
[398523492,1765785061833,-243.968931,0.00016438,2]
[398523493,1765785061843,-197.815856,0.00016438,2]
[398523494,1765785061853,-217.736866,0.00016438,2]
[398523495,1765785061863,-243.968931,0.00016438,2]
[398523496,1765785061873,-197.815856,0.00016438,2]
[398523497,1765785061882,-217.736866,0.00016438,2]
[398523498,1765785061892,-243.968931,0.00016438,2]
[398523499,1765785061901,-217.736866,0.00016438,2]
[398523500,1765785061911,-243.968931,0.00016438,2]
[398523501,1765785061920,-217.736866,0.00016438,2]
[398523502,1765785061929,-243.968931,0.00016438,2]
[398523503,1765785061939,-217.736866,0.00016438,2]
[398523504,1765785061948,-243.968931,0.00016438,2]
[398523505,1765785061961,-217.736866,0.00016438,2]
[398523506,1765785061970,-243.968931,0.00016438,2]
[398523507,1765785061980,-217.736866,0.00016438,2]
[398523508,1765785061989,-243.968931,0.00016438,2]
[398523509,1765785061998,-217.736866,0.00016438,2]
[398523510,1765785062007,-243.968931,0.00016438,2]
[398523511,1765785062016,-5576.989,0.00016917,2]
[398523512,1765785062024,-25483.77300716,0.00017,2]
[398523513,1765785062036,-7518.85926331,0.00017,2]
[398523514,1765785062046,-2617.51112008,0.00017,2]
[398523515,1765785062062,-217.736866,0.00016438,2]
[398523516,1765785062071,-212.9898158,0.00017,2]
[398523517,1765785062372,-217.736866,0.00016438,2]
[398523518,1765785062382,-408.14372,0.00016438,2]
[398523519,1765785062391,-243.968931,0.00016438,2]
[398523520,1765785062400,-217.736866,0.00016438,2]
[398523521,1765785062409,-408.14372,0.00016438,2]
[398523522,1765785062418,-243.968931,0.00016438,2]
[398523523,1765785062427,-72.71241492,0.00016438,2]
[398523524,1765785062437,-335.43130508,0.00016438,2]
[398523525,1765785062446,-217.736866,0.00016438,2]
[398523526,1765785062456,-243.968931,0.00016438,2]
[398523527,1765785062464,-217.736866,0.00016438,2]
[398523528,1765785062473,-389.68298405,0.00016438,2]
[398523529,1765785062507,-18.46073595,0.00016438,2]
[398523530,1765785062516,-243.968931,0.00016438,2]
[398523531,1765785062526,-169.89276005,0.00016438,2]
[398523540,1765785143758,1500.0,0.00021978,30]
[398523547,1765785349650,176.54,0.00012577,2]
[398523633,1765785694439,178.50581784,0.00015599,2]
[398523634,1765785694479,1272.291,0.00015599,2]
[398523636,1765785759808,999.0,0.0001571,3]
[398523646,1765785883480,-170.9346957,0.00015723,2]
[398523647,1765785887351,-230.28897526,0.00015723,2]
[398523648,1765785888780,-342.18880206,0.00015723,2]
[398523649,1765785892102,-185.35041865,0.00015723,2]
[398523661,1765785923898,150.0,0.00015288,2]
[398523662,1765785924002,150.0,0.00015288,2]
[398523663,1765785928669,-71.23710833,0.00015723,2]
[398523664,1765785930790,99.76289167,0.00015288,2]
[398523665,1765785930818,50.23710833,0.00015288,2]
[398523666,1765785930969,239.66027224,0.00015288,2]
[398523696,1765786042049,150.0,0.00015586,2]
[398523723,1765786101139,279.67,0.00015545,2]
[398523746,1765786171445,150.0,0.00021592,120]
[398523756,1765786180224,166.66,0.00014797,2]
[398523757,1765786180787,166.66,0.00015108,2]
[398523759,1765786180847,166.66,0.0001542,2]
[398523782,1765786232208,-166.66,0.00015731,2]
[398523783,1765786232218,-1200.0,0.00015816,2]
[398523784,1765786232227,-300.0,0.00015816,2]
[398523785,1765786232236,-105003.01389104,0.00015817,2]
[398523786,1765786232247,-12541.01985035,0.00015817,2]
[398523807,1765786238145,-500.0,0.00015816,2]
[398523808,1765786238155,-181.15508557,0.00015816,2]
[398523809,1765786238164,-280.60597026,0.00015816,2]
[398523810,1765786238174,-89263.20085861,0.00015817,2]
[398523811,1765786238184,-168.0,0.00015889,2]
[398523812,1765786238194,-500.0,0.000159,2]
[398523813,1765786238204,-250.0,0.00015903,2]
[398523814,1765786238214,-300.0,0.00015906,2]
[398523815,1765786238223,-151.0,0.00015907,2]
[398523816,1765786238233,-151.0,0.00015907,2]
[398523817,1765786238243,-1502.0,0.00015907,2]
[398523818,1765786238253,-151.0,0.00015907,2]
[398523819,1765786238262,-200.0,0.00015907,2]
[398523820,1765786238272,-1000.0,0.00015907,2]
[398523821,1765786238282,-151.0,0.00015907,2]
[398523822,1765786238291,-151.0,0.00015907,2]
[398523823,1765786238300,-1000.0,0.00015907,2]
[398523825,1765786238310,-151.0,0.00015907,2]
[398523826,1765786238319,-1000.0,0.00015907,2]
[398523827,1765786238328,-151.0,0.00015907,2]
[398523828,1765786238338,-1000.0,0.00015907,2]
[398523829,1765786238347,-176.89868195,0.00015907,2]
[398523830,1765786238357,-1000.0,0.00015907,2]
[398523831,1765786238367,-1000.0,0.00015907,2]
[398523832,1765786238376,-1000.0,0.00015907,2]
[398523833,1765786238385,-1000.0,0.00015907,2]
[398523834,1765786238394,-1000.0,0.00015907,2]
[398523835,1765786238403,-1000.0,0.00015907,2]
[398523836,1765786238413,-1000.0,0.00015907,2]
[398523837,1765786238422,-156.64173634,0.00015907,2]
[398523838,1765786238431,-574.12855637,0.00015907,2]
[398523839,1765786238441,-200.0,0.00015907,2]
[398523840,1765786238450,-197.76511705,0.00015907,2]
[398523841,1765786238459,-157.60922398,0.00015907,2]
[398523842,1765786238468,-500.0,0.00015907,2]
[398523843,1765786238478,-300.0,0.00015907,2]
[398523844,1765786238487,-200.0,0.00015907,2]
[398523845,1765786238496,-8721.88160797,0.00015916,2]
[398523846,1765786238505,-150.09557627,0.00015916,2]
[398523847,1765786238514,-199.0154,0.00015917,2]
[398523848,1765786238524,-500.0,0.00016016,2]
[398523849,1765786238533,-500.0,0.00016016,2]
[398523850,1765786238542,-511.37210944,0.00016016,2]
[398523851,1765786238551,-305.17878308,0.00016016,2]
[398523852,1765786238560,-508.5401249,0.00016016,2]
[398523853,1765786238570,-166.66,0.00016043,2]
[398523854,1765786238579,-151.0,0.00016198,2]
[398523855,1765786238588,-12695.21853073,0.00016201,2]
[398523856,1765786238600,-2092.48067999,0.00016201,2]
[398523857,1765786238611,-23003.48235461,0.00016201,2]
[398523858,1765786238620,-461.0,0.00016353,2]
[398523859,1765786238629,-166.66,0.00016354,2]
[398523860,1765786238638,-263.92,0.00016365,2]
[398523861,1765786238647,-168.0,0.00016375,2]
[398523862,1765786238656,-500.0,0.00016398,2]
[398523863,1765786238665,-500.0,0.00016398,2]
[398523864,1765786238675,-500.0,0.00016398,2]
[398523865,1765786238687,-206.01147421,0.00016398,2]
[398523866,1765786238696,-279.67,0.00016409,2]
[398523867,1765786238705,-1483.0,0.00016414,2]
[398523868,1765786238714,-1021.14289559,0.00016437,5]
[398523869,1765786238723,-500.0,0.00016438,2]
[398523870,1765786238733,-500.0,0.00016438,2]
[398523871,1765786238742,-801.71075194,0.00016438,2]
[398523872,1765786238752,-1544.0,0.00016447,2]
[398523873,1765786238761,-1502.0,0.00016455,2]
[398523874,1765786238771,-595.37131296,0.00016455,2]
[398523875,1765786238780,-159.92,0.00016458,2]
[398523876,1765786238789,-1074.08844988,0.00016479,2]
[398523877,1765786238798,-500.0,0.00016499,2]
[398523878,1765786238807,-1217.45,0.000165,2]
[398523879,1765786238817,-190.0,0.00016515,2]
[398523880,1765786238826,-1756.0,0.00016527,2]
[398523881,1765786238836,-177.85,0.00016529,2]
[398523882,1765786238847,-733.88235102,0.00016545,2]
[398523883,1765786238858,-6594.68818149,0.00016572,2]
[398523885,1765786240134,-1000.0,0.000166,2]
[398523886,1765786240215,-217.27,0.000166,2]
[398523887,1765786240225,-1058.41569252,0.000166,2]
[398523888,1765786240236,-174.22430748,0.000166,2]
[398523889,1765786240245,-1217.27,0.000166,2]
[398523890,1765786240254,-653.03854636,0.0001666,2]
[398523891,1765786240264,-6915.68138513,0.00016681,2]
[398523892,1765786240298,-860.47823751,0.00016681,2]
[398523893,1765786240308,-1900.23266636,0.00016681,2]
[398523894,1765786240317,-150.0,0.00016699,2]
[398523895,1765786240326,-151.37295936,0.00016699,2]
[398523896,1765786240336,-500.0,0.00016699,2]
[398523897,1765786240345,-150.0,0.00016699,2]
[398523898,1765786240354,-500.0,0.00016699,2]
[398523899,1765786240363,-150.0,0.00016699,2]
[398523900,1765786240372,-500.0,0.00016699,2]
[398523901,1765786240382,-150.0,0.00016699,2]
[398523902,1765786240391,-150.0,0.00016699,2]
[398523903,1765786240400,-150.0,0.00016699,2]
[398523904,1765786240410,-150.0,0.00016699,2]
[398523905,1765786240418,-150.0,0.00016699,2]
[398523906,1765786240427,-500.0,0.00016699,2]
[398523907,1765786240436,-295.32469408,0.00016699,2]
[398523908,1765786240445,-150.0,0.00016699,2]
[398523909,1765786240454,-150.0,0.00016699,2]
[398523910,1765786240463,-150.0,0.00016699,2]
[398523911,1765786240473,-200.0,0.00016699,2]
[398523912,1765786240483,-500.0,0.00016699,2]
[398523913,1765786240492,-150.0,0.00016699,2]
[398523914,1765786240502,-556.0,0.00016699,2]
[398523915,1765786240511,-153.30440339,0.00016699,2]
[398523916,1765786240520,-150.0,0.00016699,2]
[398523917,1765786240529,-150.0,0.00016699,2]
[398523918,1765786240538,-721.96697867,0.00016711,2]
[398523919,1765786240547,-238.26159997,0.00016712,2]
[398523920,1765786240558,-461.0,0.00016728,2]
[398523921,1765786240566,-7776.15962264,0.00016791,2]
[398523922,1765786240576,-1900.23266636,0.00016791,2]
[398523923,1765786240585,-3420.42842,0.0001683,2]
[398523924,1765786240595,-150.0,0.00016836,2]
[398523925,1765786240605,-500.0,0.00016836,2]
[398523926,1765786240614,-500.0,0.00016836,2]
[398523927,1765786240623,-150.0,0.00016836,2]
[398523928,1765786240632,-500.0,0.00016836,2]
[398523929,1765786240641,-150.0,0.00016836,2]
[398523930,1765786240651,-155.42907447,0.00016836,2]
[398523931,1765786240660,-150.0,0.00016836,2]
[398523932,1765786240669,-500.0,0.00016836,2]
[398523933,1765786240678,-150.0,0.00016836,2]
[398523934,1765786240687,-500.0,0.00016836,2]
[398523935,1765786240699,-150.0,0.00016836,2]
[398523938,1765786241118,-556.0,0.00016836,2]
[398523939,1765786241133,-150.0,0.00016836,2]
[398523940,1765786241143,-150.0,0.00016836,2]
[398523941,1765786241152,-200.0,0.00016864,2]
[398523942,1765786241161,-1196.0,0.00016869,2]
[398523943,1765786241171,-911.0,0.00016869,2]
[398523944,1765786241180,-4798.0,0.00016869,2]
[398523945,1765786241189,-2426.0,0.00016869,2]
[398523946,1765786241198,-563.0,0.00016869,2]
[398523947,1765786241207,-500.0,0.00016884,2]
[398523948,1765786241217,-500.0,0.00016884,2]
[398523949,1765786241226,-500.0,0.00016884,2]
[398523950,1765786241235,-500.0,0.00016884,2]
[398523951,1765786241245,-394.7082645,0.00016898,2]
[398523952,1765786241255,-154.88813698,0.00016898,2]
[398523953,1765786241264,-394.70826448,0.00016898,2]
[398523954,1765786241273,-394.70826448,0.00016899,2]
[398523955,1765786241282,-500.0,0.00016899,2]
[398523956,1765786241292,-394.70826448,0.00016899,2]
[398523957,1765786241301,-394.70826448,0.00016899,2]
[398523958,1765786241310,-394.70826448,0.000169,2]
[398523960,1765786241319,-10000.0,0.000169,2]
[398523961,1765786241328,-7776.15962264,0.000169,2]
[398523962,1765786241338,-394.70826448,0.000169,2]
[398523963,1765786241347,-1900.23266636,0.000169,2]
[398523964,1765786241356,-150.09557627,0.000169,2]
[398523965,1765786241366,-1236.89312992,0.000169,2]
[398523966,1765786241374,-1221.07882152,0.000169,2]
[398523967,1765786241383,-2291.97839957,0.000169,2]
[398523968,1765786241393,-502.0,0.00016904,2]
[398523969,1765786241402,-547.67,0.00016915,2]
[398523970,1765786241411,-461.0,0.0001692,2]
[398523971,1765786241420,-481.25235646,0.00016923,2]
[398523972,1765786241429,-150.0,0.00016941,2]
[398523973,1765786241438,-2135.0,0.00016959,2]
[398523974,1765786241448,-152.37400623,0.0001697,2]
[398523975,1765786241457,-500.0,0.00016973,2]
[398523976,1765786241469,-169.17840548,0.00016973,2]
[398523977,1765786241478,-500.38142603,0.00016973,2]
[398523978,1765786241487,-500.0,0.00016973,2]
[398523979,1765786241497,-500.0,0.00016973,2]
[398523980,1765786241505,-500.0,0.00016973,2]
[398523981,1765786241514,-500.0,0.00016973,2]
[398523982,1765786241523,-500.0,0.00016973,2]
[398523983,1765786241532,-500.0,0.00016973,2]
[398523984,1765786241541,-167.01915454,0.00016973,2]
[398523985,1765786241551,-500.81562554,0.00016973,2]
[398523986,1765786241560,-500.0,0.00016973,2]
[398523987,1765786241569,-500.0,0.00016973,2]
[398523988,1765786241578,-500.0,0.00016973,2]
[398523989,1765786241587,-500.0,0.00016973,2]
[398523990,1765786241596,-223.90146234,0.00016973,2]
[398523991,1765786241605,-500.0,0.00016973,2]
[398523992,1765786241614,-500.0,0.00016973,2]
[398523993,1765786241623,-500.0,0.00016973,2]
[398523994,1765786241632,-500.0,0.00016973,2]
[398523995,1765786241641,-500.0,0.00016973,2]
[398523996,1765786241650,-500.0,0.00016973,2]
[398523997,1765786241660,-250.59182654,0.00016973,2]
[398523998,1765786241670,-500.0,0.00016973,2]
[398523999,1765786241681,-500.0,0.00016973,2]
[398524000,1765786241691,-500.0,0.00016973,2]
[398524001,1765786241699,-500.0,0.00016973,2]
[398524002,1765786241708,-315.21795353,0.00016973,2]
[398524003,1765786241717,-535.77849194,0.00016973,2]
[398524004,1765786241726,-500.0,0.00016973,2]
[398524005,1765786241735,-515.49595078,0.00016973,2]
[398524006,1765786241744,-502.19695313,0.00016973,2]
[398524007,1765786241753,-500.0,0.00016973,2]
[398524008,1765786241762,-500.0,0.00016973,2]
[398524009,1765786241772,-500.0,0.00016973,2]
[398524010,1765786241781,-150.0,0.00016973,2]
[398524011,1765786241790,-254.44455269,0.00016973,2]
[398524012,1765786241799,-500.0,0.00016973,2]
[398524013,1765786241808,-150.0,0.00016973,2]
[398524014,1765786241817,-500.0,0.00016973,2]
[398524015,1765786241827,-160.97425744,0.00016973,2]
[398524016,1765786241836,-150.0,0.00016973,2]
[398524017,1765786241845,-500.0,0.00016973,2]
[398524018,1765786241854,-200.0,0.00016973,2]
[398524019,1765786241863,-500.0,0.00016973,2]
[398524020,1765786241872,-200.0,0.00016973,2]